bitfinex-derivatives/quotes_BNBF0:USTF0_20250908
["timestamp","ask_amount","ask_price","bid_price","bid_amount"]
[1757307911368,1.01971278,875.93,874.23,1.177]
[1757307911572,1.01971278,875.94,874.23,1.177]
[1757307911873,0.6855978,875.93,874.23,1.177]
[1757307912073,1.01971278,875.93,874.23,1.177]
[1757307912880,1.01971278,875.95,874.23,1.177]
[1757307913080,0.68552055,875.94,874.23,1.177]
[1757307913379,0.68552055,875.93,874.23,1.177]
[1757307913580,1.01971278,875.97,874.23,1.177]
[1757307913874,0.68431422,875.96,874.23,1.177]
[1757307914077,0.68431422,875.95,874.23,1.177]
[1757307914278,0.68431422,875.94,874.23,1.177]
[1757307914481,1.704027,875.93,874.23,1.177]
[1757307914678,1.01971278,875.93,874.23,1.177]
[1757307916082,1.01971278,875.97,874.23,1.177]
[1757307916282,0.6841833,875.96,874.23,1.177]
[1757307916583,0.6841833,875.95,874.23,1.177]
[1757307916882,1.01971278,876.08,874.23,1.177]
[1757307917178,3.53327199,877.39,874.23,1.177]
[1757307917179,0.68417721,876.07,874.23,1.177]
[1757307917381,0.68417721,876.06,874.23,1.177]
[1757307917681,0.68417721,876.05,874.23,1.177]
[1757307917879,0.68417721,876.04,874.23,1.177]
[1757307918179,0.68417721,876.03,874.23,1.177]
[1757307918382,0.68417721,876.02,874.23,1.177]
[1757307918680,1.01971278,876.17,874.23,1.177]
[1757307918878,0.68400361,876.16,874.23,1.177]
[1757307919077,0.68400361,876.15,874.23,1.177]
[1757307919381,0.68400361,876.14,874.23,1.177]
[1757307919582,0.68400361,876.13,874.23,1.177]
[1757307919784,0.68400361,876.12,874.23,1.177]
[1757307920080,0.68400361,876.11,874.23,1.177]
[1757307920282,0.68400361,876.1,874.24,0.5]
[1757307920479,0.68400361,876.09,874.24,0.5]
[1757307920683,0.68400361,876.08,874.24,0.5]
[1757307920880,0.68400361,876.07,874.53,0.5]
[1757307921080,0.68400361,876.06,874.53,0.5]
[1757307921384,0.68400361,876.05,874.53,0.5]
[1757307921582,0.68400361,876.04,874.53,0.5]
[1757307921782,1.01971278,876.18,874.53,0.5]
[1757307921986,0.6837619,876.17,874.53,0.5]
[1757307922186,0.6837619,876.16,874.53,0.5]
[1757307922383,0.6837619,876.15,874.53,0.5]
[1757307922585,0.6837619,876.14,874.37,0.5]
[1757307922787,1.01971278,876.04,874.37,0.5]
[1757307923083,1.01971278,876.05,874.37,0.5]
[1757307923286,0.68359745,876.04,874.37,0.5]
[1757307923484,1.01971278,876.04,874.37,0.5]
[1757307923886,1.01971278,876.04,874.36,0.5]
[1757307924086,1.01971278,876.04,874.33,0.284]
[1757307926690,1.01971278,876.42,874.53,0.5]
[1757307926883,0.68357017,876.41,874.46,0.433]
[1757307927088,0.68357017,876.4,874.64,0.5]
[1757307927386,0.68357017,876.39,874.64,0.5]
[1757307927583,0.68357017,876.38,874.64,0.5]
[1757307927787,0.68357017,876.37,874.64,0.5]
[1757307928088,0.68357017,876.36,874.64,0.5]
[1757307928288,0.68357017,876.35,874.64,0.5]
[1757307928488,0.68357017,876.34,874.46,0.5]
[1757307928788,0.68357017,876.33,874.42,0.284]
[1757307928988,0.68357017,876.32,874.42,0.284]
[1757307929188,0.68357017,876.31,874.42,0.284]
[1757307929390,0.68357017,876.3,874.42,0.284]
[1757307929586,0.68357017,876.29,874.42,0.284]
[1757307929889,0.68357017,876.28,874.42,0.284]
[1757307930089,0.68357017,876.27,874.48,0.19836407]
[1757307930286,0.68357017,876.26,874.48,0.19836407]
[1757307930589,0.68357017,876.25,874.48,0.19836407]
[1757307930787,0.68357017,876.24,874.48,0.19836407]
[1757307931085,0.68357017,876.23,874.48,0.19836407]
[1757307931286,0.68357017,876.22,874.48,0.19836407]
[1757307931585,0.68357017,876.21,874.48,0.19836407]
[1757307931789,0.68357017,876.2,874.48,0.19836407]
[1757307932089,0.68357017,876.19,874.48,0.19836407]
[1757307932393,1.53310222,876.64,874.48,0.19836407]
[1757307932590,0.68107306,876.63,874.48,0.19836407]
[1757307932886,0.68107306,876.62,874.67,0.5]
[1757307933090,0.68107306,876.61,874.67,0.5]
[1757307933286,2.55394823,877.76,874.67,0.5]
[1757307933287,0.68107306,876.6,874.67,0.5]
[1757307933492,0.68107306,876.59,874.67,0.5]
[1757307933787,0.68107306,876.58,874.67,0.5]
[1757307933989,0.68107306,876.57,874.67,0.5]
[1757307934291,0.68107306,876.56,874.67,0.5]
[1757307934490,0.68107306,876.55,874.67,0.5]
[1757307934687,0.68107306,876.54,874.67,0.5]
[1757307934887,0.68107306,876.53,874.67,0.5]
[1757307935090,0.68107306,876.52,874.67,0.5]
[1757307935289,0.68107306,876.51,874.67,0.5]
[1757307935488,0.68107306,876.5,874.67,0.5]
[1757307935690,0.68107306,876.49,874.67,0.5]
[1757307935890,0.68107306,876.48,874.67,0.5]
[1757307936095,0.68107306,876.47,874.67,0.5]
[1757307936288,0.68107306,876.46,874.67,0.5]
[1757307936493,0.68107306,876.45,874.67,0.5]
[1757307936693,0.68107306,876.44,874.67,0.5]
[1757307936894,0.68107306,876.43,874.67,0.5]
[1757307937090,0.68107306,876.42,874.67,0.5]
[1757307937294,0.68107306,876.41,874.67,0.5]
[1757307937495,0.68107306,876.4,874.67,0.5]
[1757307937794,0.68107306,876.39,874.67,0.5]
[1757307938093,0.68107306,876.38,874.67,0.5]
[1757307938390,0.68107306,876.37,874.67,0.5]
[1757307938594,0.68107306,876.36,874.67,0.5]
[1757307938796,0.68107306,876.35,874.67,0.5]
[1757307938993,0.68107306,876.34,874.67,0.5]
[1757307939294,0.68107306,876.33,874.49,0.5]
[1757307939493,0.68107306,876.32,874.49,0.5]
[1757307939689,0.68107306,876.31,874.49,0.5]
[1757307939988,0.68107306,876.3,874.49,0.5]
[1757307940193,0.68107306,876.29,874.49,0.5]
[1757307940392,1.53310222,876.49,874.49,0.5]
[1757307940393,0.68107306,876.28,874.49,0.5]
[1757307940595,0.68107306,876.27,874.49,0.5]
[1757307940792,0.68107306,876.26,874.49,0.5]
[1757307940994,0.68107306,876.25,874.49,0.5]
[1757307941197,0.68107306,876.24,874.49,0.5]
[1757307941400,1.53310222,876.53,874.49,0.5]
[1757307941694,1.53310222,876.44,874.49,0.5]
[1757307941898,0.68066955,876.52,874.49,0.5]
[1757307941899,0.68066955,876.43,874.49,0.5]
[1757307942200,0.68066955,876.42,874.49,0.5]
[1757307942498,1.53310222,876.38,874.49,0.5]
[1757307942696,0.68066955,876.37,874.49,0.5]
[1757307942996,0.68066955,876.36,874.49,0.5]
[1757307943199,0.68066955,876.35,874.49,0.5]
[1757307943498,0.68066955,876.34,874.49,0.5]
[1757307943696,0.68066955,876.33,874.49,0.5]
[1757307943898,0.68066955,876.32,874.49,0.5]
[1757307944199,0.68066955,876.31,874.49,0.5]
[1757307944495,0.68066955,876.3,874.49,0.5]
[1757307944693,0.68066955,876.29,874.49,0.5]
[1757307944995,0.68066955,876.28,874.49,0.5]
[1757307945195,0.68066955,876.27,874.49,0.5]
[1757307945395,0.68066955,876.26,874.49,0.5]
[1757307945593,0.68066955,876.25,874.49,0.5]
[1757307945796,0.68066955,876.24,874.49,0.5]
[1757307946096,0.68066955,876.23,874.49,0.5]
[1757307946296,1.53310222,876.38,874.5,1.501]
[1757307946498,0.68073078,876.37,874.5,1.501]
[1757307946695,0.68073078,876.36,874.5,1.501]
[1757307946894,0.68073078,876.35,874.5,1.501]
[1757307947097,0.68073078,876.34,874.5,1.501]
[1757307947298,0.68073078,876.33,874.5,1.501]
[1757307947495,0.68073078,876.32,874.5,1.501]
[1757307947697,0.68073078,876.31,874.5,1.501]
[1757307947896,0.68073078,876.3,874.5,1.501]
[1757307948197,0.68073078,876.29,874.5,1.501]
[1757307948398,0.68073078,876.28,874.5,1.501]
[1757307948598,0.68073078,876.27,874.5,1.501]
[1757307948796,0.68073078,876.26,874.5,1.501]
[1757307948999,0.68073078,876.25,874.5,1.501]
[1757307949198,0.68073078,876.24,874.5,1.501]
[1757307949403,0.68073078,876.23,874.5,1.501]
[1757307949596,1.53310222,876.38,874.5,1.501]
[1757307949896,0.68091443,876.37,874.5,1.501]
[1757307950095,0.68091443,876.36,874.5,1.501]
[1757307950297,0.68091443,876.35,874.5,1.501]
[1757307950502,0.68091443,876.34,874.5,1.501]
[1757307950700,1.53310222,876.29,874.5,1.501]
[1757307951001,0.68091443,876.28,874.5,1.501]
[1757307951299,0.68091443,876.27,874.5,1.501]
[1757307951497,0.68091443,876.26,874.5,1.501]
[1757307951696,0.68091443,876.25,874.5,1.501]
[1757307951897,0.68091443,876.24,874.5,1.501]
[1757307952100,0.68091443,876.23,874.5,1.501]
[1757307952304,1.53310222,876.29,874.5,1.501]
[1757307952505,0.68113165,876.28,874.5,1.501]
[1757307952703,0.68113165,876.27,874.5,1.501]
[1757307952902,0.68113165,876.26,874.5,1.501]
[1757307953201,0.68113165,876.25,874.5,1.501]
[1757307953404,0.68113165,876.24,874.5,1.501]
[1757307953601,2.55394823,876.89,874.5,1.501]
[1757307953602,0.68113165,876.23,874.5,1.501]
[1757307953804,1.53310222,876.28,874.5,1.501]
[1757307954000,0.68133505,876.27,874.5,1.501]
[1757307954204,0.68133505,876.26,874.5,1.501]
[1757307954402,0.68133505,876.25,874.5,1.501]
[1757307954600,0.68133505,876.24,874.5,1.501]
[1757307954905,0.68133505,876.23,874.5,1.501]
[1757307955205,1.53310222,876.33,874.5,1.501]
[1757307955405,0.68154583,876.32,874.5,1.501]
[1757307955606,0.68154583,876.31,874.5,1.501]
[1757307955902,1.53310222,876.33,874.5,1.501]
[1757307955903,0.68154583,876.3,874.5,1.501]
[1757307956105,0.68154583,876.29,874.5,1.501]
[1757307956405,0.68154583,876.28,874.5,1.501]
[1757307956705,0.68154583,876.27,874.5,1.501]
[1757307957006,1.01617656,876.23,874.5,1.501]
[1757307957606,1.01617656,876.24,874.5,1.501]
[1757307959305,0.91455891,876.24,874.5,1.501]
[1757307961107,0.68055114,876.23,874.5,1.501]
[1757307961308,0.68055114,876.22,874.5,1.501]
[1757307961509,1.53310222,876.43,874.5,1.501]
[1757307961710,0.68061915,876.42,874.5,1.501]
[1757307962007,0.68061915,876.41,874.5,1.501]
[1757307962307,0.68061915,876.4,874.5,1.501]
[1757307962608,0.68061915,876.39,874.5,1.501]
[1757307962808,0.68061915,876.38,874.5,1.501]
[1757307963012,0.68061915,876.37,874.5,1.501]
[1757307963209,0.68061915,876.36,874.5,1.501]
[1757307963508,0.68061915,876.35,874.5,1.501]
[1757307963712,0.68061915,876.34,874.5,1.501]
[1757307964011,1.53310222,876.43,874.5,1.501]
[1757307964012,0.68061915,876.33,874.5,1.501]
[1757307964311,0.68061915,876.32,874.5,1.501]
[1757307964511,0.68061915,876.31,874.5,1.501]
[1757307964811,0.68061915,876.3,874.5,1.501]
[1757307965012,0.68061915,876.29,874.5,1.501]
[1757307965311,0.68061915,876.28,874.5,1.501]
[1757307965509,0.68061915,876.27,874.5,1.501]
[1757307965708,0.68061915,876.26,874.5,1.501]
[1757307965912,0.68061915,876.25,874.5,1.501]
[1757307966114,0.68061915,876.24,874.5,1.501]
[1757307966313,0.68061915,876.23,874.5,1.501]
[1757307966613,0.68061915,876.22,874.5,1.501]
[1757307966814,1.53310222,876.39,874.5,1.501]
[1757307967018,0.68114929,876.38,874.5,1.796]
[1757307967214,0.68114929,876.37,874.5,1.501]
[1757307967510,0.68114929,876.36,874.5,1.501]
[1757307967714,0.68114929,876.35,874.5,1.501]
[1757307967914,0.68114929,876.34,874.5,1.501]
[1757307968114,0.68114929,876.33,874.5,1.501]
[1757307968411,0.68114929,876.32,874.56,0.5]
[1757307968711,0.68114929,876.31,874.56,0.5]
[1757307968910,0.68114929,876.3,874.56,0.5]
[1757307969210,0.68114929,876.29,874.56,0.5]
[1757307969510,0.68114929,876.28,874.56,0.5]
[1757307969714,0.68114929,876.27,874.56,0.5]
[1757307970013,0.68114929,876.26,874.56,0.5]
[1757307970210,0.68114929,876.25,874.56,0.5]
[1757307970415,0.68114929,876.24,874.56,0.5]
[1757307970614,0.68114929,876.23,874.56,0.5]
[1757307970915,1.53310222,876.27,874.56,0.5]
[1757307971115,0.68144023,876.26,874.5,1.501]
[1757307971318,0.68144023,876.25,874.67,0.5]
[1757307971513,0.68144023,876.24,874.67,0.5]
[1757307971713,0.68144023,876.23,874.67,0.5]
[1757307971913,1.53310222,876.27,874.67,0.5]
[1757307972113,0.68153032,876.26,874.67,0.5]
[1757307972412,0.68153032,876.25,874.67,0.5]
[1757307972616,0.68153032,876.24,874.67,0.5]
[1757307972916,0.68153032,876.23,874.5,1.501]
[1757307973117,1.53310222,876.26,874.5,1.501]
[1757307973413,0.68196136,876.25,874.5,1.501]
[1757307973714,2.21506358,876.24,874.5,1.501]
[1757307973916,0.68196136,876.23,874.5,1.501]
[1757307974114,1.53310222,876.23,874.5,1.501]
[1757307977118,1.379792,876.23,874.5,1.501]
[1757307979715,2.55394823,876.83,874.5,1.501]
[1757307979916,0.68103162,876.82,874.5,1.501]
[1757307980119,0.68103162,876.81,874.5,1.501]
[1757307980320,0.68103162,876.8,874.5,1.501]
[1757307980619,0.68103162,876.79,874.5,1.501]
[1757307980819,0.68103162,876.78,874.5,1.501]
[1757307981015,0.68103162,876.77,874.5,1.501]
[1757307981218,0.68103162,876.76,874.5,1.501]
[1757307981421,0.68103162,876.75,874.5,1.501]
[1757307981618,0.68103162,876.74,874.5,1.501]
[1757307981920,0.68103162,876.73,874.5,1.501]
[1757307982117,0.68103162,876.72,874.5,1.501]
[1757307982320,0.68103162,876.71,874.5,1.501]
[1757307982521,0.68103162,876.7,874.5,1.501]
[1757307982721,0.68103162,876.69,874.5,1.501]
[1757307982921,0.68103162,876.68,874.5,1.501]
[1757307983116,0.68103162,876.67,874.5,1.501]
[1757307983321,0.68103162,876.66,874.5,1.501]
[1757307983620,0.68103162,876.65,874.5,1.501]
[1757307983919,0.68103162,876.64,874.5,1.501]
[1757307984124,0.68103162,876.63,874.5,1.501]
[1757307984322,0.68103162,876.62,874.5,1.501]
[1757307984521,0.68103162,876.61,874.48,0.19836407]
[1757307984823,0.68103162,876.6,874.48,0.19836407]
[1757307985124,0.68103162,876.59,874.48,0.19836407]
[1757307985319,0.68103162,876.58,874.48,0.19836407]
[1757307985525,0.68103162,876.57,874.48,0.19836407]
[1757307985820,0.68103162,876.56,874.48,0.19836407]
[1757307986024,0.68103162,876.55,874.48,0.19836407]
[1757307986225,0.68103162,876.54,874.48,0.19836407]
[1757307986421,0.68103162,876.53,874.48,0.19836407]
[1757307986626,0.68103162,876.52,874.48,0.19836407]
[1757307986927,0.68103162,876.51,874.49,1.062]
[1757307987126,0.68103162,876.5,874.49,1.062]
[1757307987322,0.68103162,876.49,874.49,1.062]
[1757307987526,0.68103162,876.48,874.49,1.062]
[1757307987726,0.68103162,876.47,874.49,1.062]
[1757307987926,0.68103162,876.46,874.49,1.062]
[1757307988128,0.68103162,876.45,874.49,1.062]
[1757307988329,0.68103162,876.44,874.49,1.062]
[1757307988529,0.68103162,876.43,874.49,1.062]
[1757307988729,0.68103162,876.42,874.49,1.062]
[1757307988926,0.68103162,876.41,874.49,1.062]
[1757307989130,0.68103162,876.4,874.49,1.062]
[1757307989330,1.02133439,876.23,874.49,1.062]
[1757307989527,0.91920096,876.23,874.49,1.062]
[1757307995537,0.82728087,876.23,874.49,1.062]
[1757307995937,0.68542347,876.22,874.49,1.062]
[1757307996133,2.55394823,877.08,874.49,1.062]
[1757307996437,0.68442822,877.07,874.49,1.062]
[1757307996633,0.68442822,877.06,874.49,1.062]
[1757307996833,0.68442822,877.05,874.49,1.062]
[1757307997133,1.53230816,876.3,874.49,1.062]
[1757307997336,0.68442822,876.29,874.49,1.062]
[1757307997536,0.68442822,876.28,874.49,1.062]
[1757307997837,0.68442822,876.27,874.49,1.062]
[1757307998034,0.68442822,876.26,874.49,1.062]
[1757307998332,0.68442822,876.25,874.49,1.062]
[1757307998537,0.68442822,876.24,874.49,1.062]
[1757307998738,0.68442822,876.23,874.49,1.062]
[1757307998939,1.53230816,876.17,874.49,1.062]
[1757308000234,1.53230816,876.15,874.49,1.062]
[1757308000939,1.53230816,876.1,874.49,1.062]
[1757308001640,1.53230816,876.06,874.49,1.062]
[1757308002643,1.53230816,876.23,874.49,1.062]
[1757308002840,1.53230816,876.22,874.49,1.062]
[1757308003045,1.53230816,876.09,874.49,1.062]
[1757308003343,1.53230816,876.12,874.49,1.062]
[1757308004146,1.53230816,876.09,874.49,1.062]
[1757308004349,1.53230816,875.98,874.49,1.062]
[1757308004547,1.53230816,876.0,874.49,1.062]
[1757308005245,1.53230816,876.02,874.49,1.062]
[1757308005457,1.53230816,875.96,874.49,1.062]
[1757308005749,1.53230816,875.97,874.49,1.062]
[1757308006444,1.53230816,875.99,874.49,1.062]
[1757308007249,1.53230816,876.01,874.49,1.062]
[1757308008148,1.53230816,876.03,874.49,1.062]
[1757308009147,1.53230816,876.05,874.49,1.062]
[1757308010148,1.53230816,876.04,874.49,1.062]
[1757308010353,1.53230816,876.02,874.49,1.062]
[1757308010547,1.53230816,876.01,874.49,1.062]
[1757308011351,1.53230816,876.0,874.49,1.062]
[1757308011848,1.53230816,875.99,874.49,1.062]
[1757308013151,1.53230816,875.98,874.49,1.062]
[1757308013551,0.68304653,875.97,874.49,1.062]
[1757308013850,0.68304653,875.96,874.49,1.062]
[1757308014053,1.53230816,875.98,874.49,1.062]
[1757308014054,0.68304653,875.95,874.49,1.062]
[1757308014349,0.68304653,875.94,874.49,1.062]
[1757308014554,0.68304653,875.93,874.49,1.062]
[1757308014855,0.68304653,875.92,874.49,1.062]
[1757308015055,0.68304653,875.91,874.49,1.062]
[1757308015256,2.55394823,877.01,874.49,1.062]
[1757308015257,0.68304653,875.9,874.49,1.062]
[1757308015551,0.68304653,875.89,874.49,1.062]
[1757308015751,0.68304653,875.88,874.49,1.062]
[1757308015956,0.68304653,875.87,874.49,1.062]
[1757308016163,0.68304653,875.86,874.49,1.062]
[1757308016456,0.68304653,875.85,874.49,1.062]
[1757308016656,0.68304653,875.84,874.49,1.062]
[1757308016857,0.68304653,875.83,874.49,1.062]
[1757308017057,0.68304653,875.82,874.49,1.062]
[1757308017255,0.68304653,875.81,874.49,1.062]
[1757308017458,0.68304653,875.8,874.49,1.062]
[1757308017658,0.68304653,875.79,874.49,1.062]
[1757308017858,0.68304653,875.78,874.49,1.062]
[1757308018059,0.68304653,875.77,874.48,0.19836407]
[1757308018259,0.68304653,875.76,874.48,0.19836407]
[1757308018455,0.68304653,875.75,874.48,0.19836407]
[1757308018656,0.68304653,875.74,874.48,0.19836407]
[1757308018954,0.68304653,875.73,874.48,0.19836407]
[1757308019154,0.68304653,875.72,874.48,0.19836407]
[1757308019354,1.53230816,876.01,874.48,0.19836407]
[1757308019555,0.68214363,876.0,874.48,0.19836407]
[1757308019754,0.68214363,875.99,874.48,0.19836407]
[1757308020056,0.68214363,875.98,874.48,0.19836407]
[1757308020260,0.68214363,875.97,874.48,0.19836407]
[1757308020458,0.68214363,875.96,874.48,0.19836407]
[1757308020656,0.68214363,875.95,874.48,0.19836407]
[1757308020860,0.68214363,875.94,874.48,0.19836407]
[1757308021056,0.68214363,875.93,874.48,0.19836407]
[1757308021259,0.68214363,875.92,874.48,0.19836407]
[1757308021465,0.68214363,875.91,874.48,0.19836407]
[1757308021660,0.68214363,875.9,874.48,0.19836407]
[1757308021859,0.68214363,875.89,874.48,0.19836407]
[1757308022158,0.68214363,875.88,874.49,1.021]
[1757308022364,0.68214363,875.87,874.49,1.021]
[1757308022561,0.68214363,875.86,874.49,1.021]
[1757308022862,0.68214363,875.85,874.49,1.021]
[1757308023158,0.68214363,875.84,874.49,1.021]
[1757308023357,0.68214363,875.83,874.49,1.021]
[1757308023558,0.68214363,875.82,874.49,1.021]
[1757308023764,0.68214363,875.81,874.49,1.021]
[1757308024063,0.68214363,875.8,874.49,1.021]
[1757308024357,0.68214363,875.79,874.49,1.021]
[1757308024558,0.68214363,875.78,874.49,1.021]
[1757308024757,0.68214363,875.77,874.49,1.021]
[1757308024961,0.68214363,875.76,874.49,1.021]
[1757308025257,0.68214363,875.75,874.49,1.021]
[1757308025461,0.68214363,875.74,874.49,1.021]
[1757308025657,1.013626,875.67,874.49,1.021]
[1757308025856,0.68214363,875.66,874.49,1.021]
[1757308026057,0.68214363,875.65,874.49,1.021]
[1757308026258,1.69576963,875.64,874.49,1.021]
[1757308026459,1.013626,875.64,874.49,1.021]
[1757308028059,1.013626,875.65,874.49,1.021]
[1757308028258,1.013626,875.69,874.49,1.021]
[1757308028462,0.68125268,875.68,874.49,1.021]
[1757308028762,1.013626,875.7,874.49,1.021]
[1757308028960,0.68125261,875.69,874.49,1.021]
[1757308029260,0.68125261,875.68,874.49,1.021]
[1757308029465,1.013626,875.75,874.49,1.021]
[1757308029660,1.013626,875.81,874.49,1.021]
[1757308029865,0.68127473,875.8,874.49,1.021]
[1757308030062,0.68127473,875.79,874.49,1.021]
[1757308030261,0.68127473,875.78,874.49,1.021]
[1757308030565,0.68127473,875.77,874.49,1.021]
[1757308030764,0.68127473,875.76,874.49,1.021]
[1757308030961,1.013626,875.83,874.49,1.021]
[1757308031160,0.68127515,875.82,874.49,1.021]
[1757308031366,0.68127515,875.81,874.49,1.021]
[1757308031563,0.68127515,875.8,874.49,1.021]
[1757308031762,0.68127515,875.79,874.49,1.021]
[1757308031962,0.68127515,875.78,874.49,1.021]
[1757308032161,0.68127515,875.77,874.49,1.021]
[1757308032364,1.013626,875.84,874.49,1.021]
[1757308032565,1.69491889,875.83,874.49,1.021]
[1757308032765,0.68129289,875.82,874.49,1.021]
[1757308032965,0.68129289,875.81,874.49,1.021]
[1757308033162,0.68129289,875.8,874.49,1.021]
[1757308033363,0.68129289,875.79,874.49,1.021]
[1757308033564,0.68129289,875.78,874.49,1.021]
[1757308033765,0.68129289,875.77,874.49,1.021]
[1757308033964,1.013626,875.83,874.49,1.021]
[1757308034162,0.68130905,875.82,874.49,1.021]
[1757308034361,0.68130905,875.81,874.49,1.021]
[1757308034567,0.68130905,875.8,874.49,1.021]
[1757308034763,0.68130905,875.79,874.49,1.021]
[1757308034966,0.68130905,875.78,874.49,1.021]
[1757308035164,0.68130905,875.77,874.49,1.021]
[1757308035364,0.68130905,875.76,874.49,1.021]
[1757308035569,1.013626,875.81,874.49,1.021]
[1757308035769,0.68133756,875.8,874.49,1.021]
[1757308035965,0.68133756,875.79,874.49,1.021]
[1757308036167,0.68133756,875.78,874.49,1.021]
[1757308036364,0.68133756,875.77,874.49,1.021]
[1757308036568,0.68133756,875.76,874.49,1.021]
[1757308036866,1.013626,875.82,874.49,1.021]
[1757308037070,0.68136886,875.81,874.49,1.021]
[1757308037270,0.68136886,875.8,874.49,1.021]
[1757308037470,0.68136886,875.79,874.49,1.021]
[1757308037669,0.68136886,875.78,874.49,1.021]
[1757308037972,1.69499486,875.77,874.49,1.021]
[1757308038172,1.013626,875.83,874.49,1.021]
[1757308038969,1.013626,875.83,874.48,0.19836407]
[1757308043187,1.013626,875.83,874.49,1.025]
[1757308054186,0.91226341,875.83,874.49,1.025]
[1757308055086,2.44457157,875.83,874.49,1.025]
[1757308055283,0.91226341,875.83,874.49,1.025]
[1757308056383,2.44457157,875.83,874.49,1.025]
[1757308057488,0.91226341,875.83,874.49,1.025]
[1757308058488,2.44457157,875.83,874.49,1.025]
[1757308058688,0.91226341,875.83,874.49,1.025]
[1757308059189,2.44457157,875.83,874.49,1.025]
[1757308060289,2.20011442,875.83,874.49,1.025]
[1757308060489,0.66780626,875.83,874.49,1.025]
[1757308061489,0.68238162,875.82,874.49,1.025]
[1757308061690,1.53230816,875.86,874.49,1.025]
[1757308061892,0.68237804,875.85,874.49,1.025]
[1757308062091,0.68237804,875.84,874.49,1.025]
[1757308062391,0.68237804,875.83,874.49,1.025]
[1757308062591,0.68237804,875.82,874.49,1.025]
[1757308062787,1.53230816,875.84,874.49,1.025]
[1757308062992,0.68259959,875.83,874.49,1.025]
[1757308063294,2.21490775,875.82,874.49,1.025]
[1757308063591,1.53230816,875.82,874.49,1.025]
[1757308064594,1.53230816,875.83,874.49,1.025]
[1757308064800,0.6847629,875.82,874.49,1.025]
[1757308064999,1.53230816,875.83,874.49,1.025]
[1757308065296,0.68476979,875.82,874.49,1.025]
[1757308065497,1.53230816,875.83,874.49,1.025]
[1757308065696,0.68477652,875.82,874.49,1.025]
[1757308065995,1.53230816,875.83,874.49,1.025]
[1757308066194,2.21708468,875.82,874.49,1.025]
[1757308066397,1.53230816,875.82,874.49,1.025]
[1757308066796,1.53230816,875.84,874.49,1.025]
[1757308066995,0.68495307,875.83,874.49,1.025]
[1757308067299,0.68495307,875.82,874.49,1.025]
[1757308067499,0.68494066,875.81,874.49,1.025]
[1757308067696,1.53230816,875.83,874.49,1.025]
[1757308067901,0.68494072,875.82,874.49,1.025]
[1757308068200,0.68494072,875.81,874.49,1.025]
[1757308068497,1.53230816,875.83,874.49,1.025]
[1757308068703,0.68493748,875.82,874.49,1.025]
[1757308069000,0.68493748,875.81,874.49,1.025]
[1757308069198,1.53230816,875.83,874.49,1.025]
[1757308069398,0.68493437,875.82,874.49,1.025]
[1757308069599,0.68493437,875.81,874.49,1.025]
[1757308069800,1.53230816,875.83,874.49,1.025]
[1757308069998,0.68493441,875.82,874.48,0.19836407]
[1757308070197,0.68493441,875.81,874.48,0.19836407]
[1757308070401,1.53230816,875.81,874.48,0.19836407]
[1757308072598,1.53230816,875.81,874.49,1.357]
[1757308074304,1.53230816,875.83,874.49,1.357]
[1757308074503,0.68697782,875.82,874.49,1.357]
[1757308074702,0.68697782,875.81,874.49,1.357]
[1757308074902,1.53230816,875.83,874.49,1.357]
[1757308075102,0.68697795,875.82,874.49,1.357]
[1757308075307,0.68697795,875.81,874.49,1.357]
[1757308075506,1.53230816,875.83,874.49,1.357]
[1757308075706,0.6869812,875.82,874.49,1.357]
[1757308075904,0.6869812,875.81,874.49,1.357]